fUSD/lending_fUSD_20241230
["ID","MTS","AMOUNT","RATE_DAILY","PERIOD"]
[347167533,1735540244508,-2737.768171,0.00015,2]
[347167534,1735540244517,-2737.768171,0.00015,2]
[347167535,1735540244526,-154.767104,0.00015,2]
[347167536,1735540244535,-154.767104,0.00015,2]
[347167537,1735540244544,-154.767104,0.00015,2]
[347167538,1735540244553,-154.767104,0.00015,2]
[347167539,1735540244563,-154.767104,0.00015,2]
[347167540,1735540244572,-154.767104,0.00015,2]
[347167541,1735540244581,-154.767104,0.00015,2]
[347167542,1735540244590,-154.767104,0.00015,2]
[347167543,1735540244599,-154.767104,0.00015,2]
[347167544,1735540244608,-154.767104,0.00015,2]
[347167545,1735540244617,-9102.599391,0.00015,2]
[347167546,1735540244626,-9102.599391,0.00015,2]
[347167547,1735540244635,-9102.599391,0.00015,2]
[347167548,1735540244644,-9102.599391,0.00015,2]
[347167549,1735540244653,-9102.599391,0.00015,2]
[347167550,1735540244667,-9102.599391,0.00015,2]
[347167551,1735540244677,-9102.599391,0.00015,2]
[347167552,1735540244686,-9102.599391,0.00015,2]
[347167553,1735540244695,-152.686728,0.00015,2]
[347167554,1735540244704,-152.686728,0.00015,2]
[347167555,1735540244713,-152.686728,0.00015,2]
[347167556,1735540244722,-152.686728,0.00015,2]
[347167557,1735540244732,-152.686728,0.00015,2]
[347167558,1735540244742,-152.686728,0.00015,2]
[347167559,1735540244751,-152.686728,0.00015,2]
[347167560,1735540244760,-152.686728,0.00015,2]
[347167561,1735540244770,-152.686728,0.00015,2]
[347167562,1735540244779,-152.686728,0.00015,2]
[347167563,1735540244788,-174.410269,0.00015,2]
[347167564,1735540244801,-174.410269,0.00015,2]
[347167565,1735540244810,-174.410269,0.00015,2]
[347167566,1735540244819,-174.410269,0.00015,2]
[347167567,1735540244827,-174.410269,0.00015,2]
[347167568,1735540244836,-174.410269,0.00015,2]
[347167569,1735540244846,-174.410269,0.00015,2]
[347167570,1735540244855,-174.410269,0.00015,2]
[347167571,1735540244865,-174.410269,0.00015,2]
[347167572,1735540244874,-174.410269,0.00015,2]
[347167573,1735540244884,-231.639259,0.00015,2]
[347167574,1735540244894,-151.0,0.00015,2]
[347167575,1735540244904,-231.639259,0.00015,2]
[347167576,1735540244913,-151.0,0.00015,2]
[347167577,1735540244923,-231.639259,0.00015,2]
[347167578,1735540244931,-151.0,0.00015,2]
[347167579,1735540244940,-231.639259,0.00015,2]
[347167580,1735540244949,-151.0,0.00015,2]
[347167581,1735540244959,-231.639259,0.00015,2]
[347167582,1735540244968,-151.0,0.00015,2]
[347167583,1735540244978,-231.639259,0.00015,2]
[347167584,1735540244988,-231.639259,0.00015,2]
[347167585,1735540244997,-231.639259,0.00015,2]
[347167586,1735540245007,-151.0,0.00015,2]
[347167587,1735540245016,-231.639259,0.00015,2]
[347167588,1735540245025,-151.0,0.00015,2]
[347167589,1735540245034,-231.639259,0.00015,2]
[347167590,1735540245043,-151.0,0.00015,2]
[347167591,1735540245052,-151.0,0.00015,2]
[347167592,1735540245061,-257.204629,0.00015,2]
[347167593,1735540245070,-200.145205,0.00015,2]
[347167594,1735540245079,-265.184102,0.00015,2]
[347167595,1735540245088,-265.184102,0.00015,2]
[347167596,1735540245097,-265.184102,0.00015,2]
[347167597,1735540245108,-265.184102,0.00015,2]
[347167598,1735540245117,-265.184102,0.00015,2]
[347167599,1735540245126,-265.184102,0.00015,2]
[347167600,1735540245135,-265.184102,0.00015,2]
[347167601,1735540245145,-265.184102,0.00015,2]
[347167602,1735540245154,-1152.785245,0.00015,2]
[347167603,1735540245211,-1152.785245,0.00015,2]
[347167604,1735540245220,-1152.785245,0.00015,2]
[347167605,1735540245229,-1152.785245,0.00015,2]
[347167606,1735540245238,-151.0,0.00015,2]
[347167607,1735540245247,-151.0,0.00015,2]
[347167608,1735540245256,-151.0,0.00015,2]
[347167609,1735540245265,-1152.785245,0.00015,2]
[347167610,1735540245274,-1152.785245,0.00015,2]
[347167611,1735540245283,-1152.785245,0.00015,2]
[347167612,1735540245292,-1152.785245,0.00015,2]
[347167613,1735540245301,-154.703827,0.00015,2]
[347167614,1735540245310,-154.703827,0.00015,2]
[347167615,1735540245320,-154.703827,0.00015,2]
[347167616,1735540245329,-154.703827,0.00015,2]
[347167617,1735540245338,-154.703827,0.00015,2]
[347167618,1735540245347,-154.703827,0.00015,2]
[347167619,1735540245356,-154.703827,0.00015,2]
[347167620,1735540245365,-154.703827,0.00015,2]
[347167622,1735540245375,-313.045588,0.00015,2]
[347167623,1735540245385,-313.045588,0.00015,2]
[347167624,1735540245394,-313.045588,0.00015,2]
[347167626,1735540245403,-313.045588,0.00015,2]
[347167627,1735540245412,-372.984658,0.00015,2]
[347167628,1735540245422,-372.984658,0.00015,2]
[347167629,1735540245432,-372.984658,0.00015,2]
[347167630,1735540245441,-372.984658,0.00015,2]
[347167631,1735540245451,-313.045588,0.00015,2]
[347167632,1735540245461,-313.045588,0.00015,2]
[347167633,1735540245471,-313.045588,0.00015,2]
[347167634,1735540245481,-313.045588,0.00015,2]
[347167635,1735540245490,-372.984658,0.00015,2]
[347167636,1735540245500,-372.984658,0.00015,2]
[347167637,1735540245510,-372.984658,0.00015,2]
[347167638,1735540245519,-372.984655,0.00015,2]
[347167639,1735540245529,-151.0,0.00015,2]
[347167640,1735540245538,-151.0,0.00015,2]
[347167641,1735540245547,-151.0,0.00015,2]
[347167642,1735540245556,-257.788366,0.00015,2]
[347167643,1735540245566,-182.50418,0.00015,2]
[347167644,1735540245575,-1678.838186,0.00015,2]
[347167645,1735540245585,-1678.838186,0.00015,2]
[347167646,1735540245594,-1678.838186,0.00015,2]
[347167647,1735540245604,-150.0,0.00015006,2]
[347167648,1735540245613,-254.25997644,0.00015008,2]
[347167649,1735540245623,-150.0,0.00015008,2]
[347167650,1735540245632,-150.0,0.00015008,2]
[347167651,1735540245642,-254.25997644,0.00015025,2]
[347167652,1735540245651,-265.184102,0.00015027,2]
[347167653,1735540245660,-265.184099,0.00015027,2]
[347167654,1735540245670,-1152.785245,0.00015027,2]
[347167655,1735540245679,-1152.785253,0.00015027,2]
[347167656,1735540245688,-154.703827,0.00015027,2]
[347167657,1735540245697,-154.703827,0.00015027,2]
[347167658,1735540245707,-313.045588,0.00015027,2]
[347167659,1735540245716,-313.045588,0.00015027,2]
[347167660,1735540245726,-150.0,0.00015027,2]
[347167661,1735540245735,-17749.59494377,0.00015032,2]
[347167662,1735540245746,-254.25997644,0.00015041,2]
[347167663,1735540245755,-150.0,0.00015044,2]
[347167664,1735540245765,-150.0,0.00015048,2]
[347167665,1735540245775,-150.0,0.00015049,2]
[347167666,1735540245784,-2595.76538402,0.00015054,2]
[347167667,1735540245794,-566.538786,0.00015055,2]
[347167668,1735540245804,-566.538786,0.00015055,2]
[347167669,1735540245813,-269.085621,0.00015055,2]
[347167670,1735540245822,-269.085621,0.00015055,2]
[347167671,1735540245831,-223.792989,0.00015055,2]
[347167672,1735540245842,-223.792989,0.00015055,2]
[347167673,1735540245851,-151.0,0.00015055,2]
[347167674,1735540245859,-151.0,0.00015055,2]
[347167675,1735540245869,-151.0,0.00015055,2]
[347167676,1735540245879,-151.0,0.00015055,2]
[347167677,1735540245889,-210.019691,0.00015055,2]
[347167678,1735540245898,-210.019691,0.00015055,2]
[347167679,1735540245907,-160.023221,0.00015055,2]
[347167680,1735540245916,-160.023221,0.00015055,2]
[347167681,1735540245925,-151.0,0.00015055,2]
[347167682,1735540245933,-1886.479033,0.00015055,2]
[347167683,1735540245942,-1886.479033,0.00015055,2]
[347167684,1735540245952,-157.667814,0.00015055,2]
[347167685,1735540245961,-273.425083,0.00015055,2]
[347167686,1735540245970,-273.425083,0.00015055,2]
[347167687,1735540245979,-151.0,0.00015055,2]
[347167688,1735540245987,-2146.478065,0.00015055,2]
[347167689,1735540245997,-2146.478065,0.00015055,2]
[347167690,1735540246006,-1507.006463,0.00015055,2]
[347167691,1735540246016,-1507.006472,0.00015055,2]
[347167692,1735540246026,-178.860113,0.00015055,2]
[347167693,1735540246035,-178.86011,0.00015055,2]
[347167694,1735540246044,-2737.768171,0.00015055,2]
[347167695,1735540246054,-151.0,0.00015055,2]
[347167696,1735540246063,-2737.768171,0.00015055,2]
[347167697,1735540246073,-154.767104,0.00015055,2]
[347167698,1735540246082,-154.76711,0.00015055,2]
[347167699,1735540246092,-9102.599391,0.00015055,2]
[347167700,1735540246101,-9102.599392,0.00015055,2]
[347167701,1735540246111,-152.686728,0.00015055,2]
[347167702,1735540246120,-152.686723,0.00015055,2]
[347167703,1735540246130,-174.410269,0.00015055,2]
[347167704,1735540246140,-174.410269,0.00015055,2]
[347167705,1735540246150,-231.639259,0.00015055,2]
[347167706,1735540246160,-151.0,0.00015055,2]
[347167707,1735540246169,-231.639257,0.00015055,2]
[347167708,1735540246179,-254.25997644,0.00015058,2]
[347167709,1735540246189,-300.0,0.00015069,2]
[347167710,1735540246198,-150.0,0.00015069,2]
[347167711,1735540246208,-254.25997644,0.00015074,2]
[347167712,1735540246219,-150.0,0.00015075,2]
[347167713,1735540246228,-150.0,0.00015081,2]
[347167714,1735540246238,-254.25997644,0.0001509,2]
[347167715,1735540246248,-150.0,0.0001509,2]
[347167716,1735540246258,-150.0,0.00015099,2]
[347167717,1735540246267,-296.84825516,0.000151,2]
[347167718,1735540246277,-200.0,0.00015102,2]
[347167719,1735540246287,-254.25997644,0.00015107,2]
[347167720,1735540246297,-150.0,0.00015112,2]
[347167721,1735540246308,-150.0,0.00015117,2]
[347167722,1735540246317,-254.25997644,0.00015123,2]
[347167723,1735540246327,-500.0,0.00015126,2]
[347167724,1735540246337,-150.0,0.00015133,2]
[347167725,1735540246347,-150.0,0.00015137,2]
[347167726,1735540246357,-1156.228647,0.00015138,2]
[347167727,1735540246367,-1156.228647,0.00015138,2]
[347167728,1735540246376,-330.978112,0.00015138,2]
[347167729,1735540246386,-330.978112,0.00015138,2]
[347167730,1735540246395,-1886.479033,0.00015138,2]
[347167731,1735540246405,-1886.479033,0.00015138,2]
[347167732,1735540246414,-1379.333939,0.00015138,2]
[347167733,1735540246425,-154.228486,0.00015138,2]
[347167734,1735540246435,-1379.333939,0.00015138,2]
[347167735,1735540246446,-154.228486,0.00015138,2]
[347167736,1735540246456,-273.425083,0.00015138,2]
[347167737,1735540246466,-273.425083,0.00015138,2]
[347167738,1735540246476,-151.0,0.00015138,2]
[347167739,1735540246486,-2146.478065,0.00015138,2]
[347167740,1735540246497,-2146.478065,0.00015138,2]
[347167741,1735540246507,-2737.768171,0.00015138,2]
[347167742,1735540246517,-2737.768171,0.00015138,2]
[347167743,1735540246527,-200.0,0.00015139,2]
[347167744,1735540246537,-200.0,0.00015139,2]
[347167745,1735540246547,-2000.0,0.00015139,2]
[347167746,1735540246557,-200.0,0.00015139,2]
[347167747,1735540246568,-2000.0,0.00015139,2]
[347167748,1735540246577,-200.0,0.00015139,2]
[347167749,1735540246587,-254.25997644,0.0001514,2]
[347167750,1735540246597,-207.0,0.0001515,2]
[347167751,1735540246607,-150.0,0.00015153,2]
[347167752,1735540246617,-150.0,0.00015154,2]
[347167753,1735540246627,-254.25997644,0.00015156,2]
[347167754,1735540246637,-362.0,0.0001516,2]
[347167755,1735540246647,-150.0,0.0001516,2]
[347167756,1735540246659,-254.25997644,0.00015173,2]
[347167757,1735540246669,-150.0,0.00015175,2]
[347167758,1735540246679,-17749.59494377,0.00015175,2]
[347167759,1735540246690,-254.25997644,0.00015189,2]
[347167760,1735540246700,-150.0,0.00015189,2]
[347167761,1735540246710,-150.0,0.00015189,2]
[347167762,1735540246721,-150.0,0.00015189,2]
[347167763,1735540246731,-150.0,0.00015196,2]
[347167764,1735540246741,-254.25997644,0.00015205,2]
[347167765,1735540246751,-1500.0,0.00015213,2]
[347167766,1735540246761,-150.0,0.00015217,2]
[347167767,1735540246772,-150.0,0.00015219,2]
[347167768,1735540246782,-2595.76538402,0.0001522,2]
[347167769,1735540246794,-2999.96,0.0001522,2]
[347167770,1735540246805,-3000.0,0.0001522,2]
[347167771,1735540246815,-3000.0,0.0001522,2]
[347167772,1735540246825,-3000.0,0.0001522,2]
[347167773,1735540246835,-1312.68,0.0001522,2]
[347167774,1735540246845,-3000.0,0.0001522,2]
[347167775,1735540246855,-151.0,0.0001522,2]
[347167776,1735540246865,-566.538786,0.0001522,2]
[347167777,1735540246875,-566.538786,0.0001522,2]
[347167778,1735540246885,-269.085621,0.0001522,2]
[347167779,1735540246895,-269.085621,0.0001522,2]
[347167780,1735540246905,-223.792989,0.0001522,2]
[347167781,1735540246915,-223.792989,0.0001522,2]
[347167782,1735540246925,-151.0,0.0001522,2]
[347167783,1735540246935,-151.0,0.0001522,2]
[347167784,1735540246945,-151.0,0.0001522,2]
[347167785,1735540246955,-151.0,0.0001522,2]
[347167786,1735540246965,-226.965261,0.0001522,2]
[347167787,1735540246975,-157.78431,0.0001522,2]
[347167788,1735540246985,-1156.228647,0.0001522,2]
[347167789,1735540246995,-1156.228647,0.0001522,2]
[347167790,1735540247005,-330.978112,0.0001522,2]
[347167791,1735540247015,-330.978112,0.0001522,2]
[347167792,1735540247025,-151.0,0.0001522,2]
[347167793,1735540247035,-210.019691,0.0001522,2]
[347167794,1735540247046,-210.019697,0.0001522,2]
[347167795,1735540247056,-160.023221,0.0001522,2]
[347167796,1735540247066,-160.023225,0.0001522,2]
[347167797,1735540247077,-151.0,0.0001522,2]
[347167798,1735540247088,-1886.479033,0.0001522,2]
[347167799,1735540247098,-1886.479027,0.0001522,2]
[347167800,1735540247110,-1379.333939,0.0001522,2]
[347167801,1735540247122,-154.228486,0.0001522,2]
[347167802,1735540247135,-1379.333939,0.0001522,2]
[347167803,1735540247148,-154.228486,0.0001522,2]
[347167804,1735540247160,-273.425083,0.0001522,2]
[347167805,1735540247171,-273.425085,0.0001522,2]
[347167806,1735540247181,-151.0,0.0001522,2]
[347167807,1735540247193,-2146.478065,0.0001522,2]
[347167808,1735540247205,-2146.478059,0.0001522,2]
[347167809,1735540247218,-2737.768171,0.0001522,2]
[347167810,1735540247229,-2737.768167,0.0001522,2]
[347167811,1735540247240,-151.0,0.00015221,2]
[347167812,1735540247253,-151.0,0.00015221,2]
[347167813,1735540247265,-254.25997644,0.00015222,2]
[347167814,1735540247277,-150.0,0.00015225,2]
[347167815,1735540247291,-1224.55524042,0.00015235,2]
[347167816,1735540247303,-254.25997644,0.00015238,2]
[347167817,1735540247314,-150.0,0.00015238,2]
[347167818,1735540247326,-150.0,0.00015252,2]
[347167819,1735540247337,-254.25997644,0.00015255,2]
[347167820,1735540247347,-150.0,0.00015259,2]
[347167821,1735540247358,-151.0,0.00015261,2]
[347167822,1735540247370,-178.276333,0.00015261,2]
[347167823,1735540247382,-500.0,0.00015261,2]
[347167824,1735540247394,-500.0,0.00015261,2]
[347167825,1735540247406,-500.0,0.00015261,2]
[347167826,1735540247418,-500.0,0.00015261,2]
[347167827,1735540247430,-500.0,0.00015261,2]
[347167828,1735540247442,-500.0,0.00015261,2]
[347167829,1735540247454,-500.0,0.00015261,2]
[347167830,1735540247466,-500.0,0.00015261,2]
[347167831,1735540247478,-500.0,0.00015261,2]
[347167832,1735540247489,-500.0,0.00015261,2]
[347167833,1735540247504,-500.0,0.00015261,2]
[347167834,1735540247517,-500.0,0.00015261,2]
[347167835,1735540247529,-500.0,0.00015261,2]
[347167836,1735540247541,-500.0,0.00015261,2]
[347167837,1735540247553,-500.0,0.00015261,2]
[347167838,1735540247565,-500.0,0.00015261,2]
[347167839,1735540247577,-500.0,0.00015261,2]
[347167840,1735540247589,-8294.09,0.00015261,2]
[347167841,1735540247600,-500.0,0.00015261,2]
[347167842,1735540247611,-1115.87,0.00015261,2]
[347167843,1735540247623,-500.0,0.00015261,2]
[347167844,1735540247635,-1631.27,0.00015261,2]
[347167845,1735540247647,-718.01,0.00015261,2]
[347167846,1735540247658,-746.82,0.00015261,2]
[347167847,1735540247669,-1700.04,0.00015261,2]
[347167848,1735540247679,-3316.1,0.00015261,2]
[347167849,1735540247690,-150.0,0.00015261,2]
[347167850,1735540247700,-500.0,0.00015262,2]
[347167851,1735540247710,-2309.314928,0.00015262,2]
[347167852,1735540247721,-1892.684954,0.00015262,2]
[347167853,1735540247732,-549.98,0.00015262,2]
[347167854,1735540247744,-493.2,0.00015262,2]
[347167855,1735540247757,-561.62,0.00015262,2]
[347167856,1735540247768,-390.18035996,0.00015262,2]
[347167857,1735540247779,-500.0,0.00015262,2]
[347167858,1735540247789,-599.76,0.00015262,2]
[347167859,1735540247802,-500.0,0.00015262,2]
[347167860,1735540247813,-408.8982165,0.00015262,2]
[347167861,1735540247823,-261.53425957,0.00015262,2]
[347167862,1735540247834,-500.0,0.00015262,2]
[347167863,1735540247846,-1890.23,0.00015262,2]
[347167864,1735540247858,-1329.52,0.00015262,2]
[347167865,1735540247869,-500.0,0.00015262,2]
[347167866,1735540247878,-500.0,0.00015262,2]
[347167867,1735540247889,-500.0,0.00015262,2]
[347167868,1735540247900,-1541.18,0.00015262,2]
[347167869,1735540247910,-155.66350197,0.00015262,2]
[347167870,1735540247920,-500.0,0.00015262,2]
[347167871,1735540247931,-500.0,0.00015262,2]
[347167872,1735540247941,-1758.7,0.00015262,2]
[347167873,1735540247951,-770.87,0.00015262,2]
[347167874,1735540247962,-500.0,0.00015262,2]
[347167875,1735540247973,-500.0,0.00015262,2]
[347167876,1735540247983,-1237.1,0.00015262,2]
[347167877,1735540247994,-173.75,0.00015262,2]
[347167878,1735540248004,-3260.46,0.00015262,2]
[347167879,1735540248015,-500.0,0.00015262,2]
[347167880,1735540248025,-1898.39,0.00015262,2]
[347167881,1735540248035,-251.24,0.00015262,2]
[347167882,1735540248046,-8076.67,0.00015262,2]
[347167883,1735540248056,-5355.53,0.00015262,2]
[347167884,1735540248066,-500.0,0.00015262,2]
[347167885,1735540248077,-500.0,0.00015262,2]
[347167886,1735540248087,-772.89,0.00015262,2]
[347167887,1735540248098,-500.0,0.00015262,2]
[347167888,1735540248109,-500.0,0.00015262,2]
[347167889,1735540248120,-500.0,0.00015262,2]
[347167890,1735540248130,-250.98,0.00015262,2]
[347167891,1735540248141,-2333.86,0.00015262,2]
[347167892,1735540248151,-500.0,0.00015262,2]
[347167893,1735540248161,-500.0,0.00015262,2]
[347167894,1735540248172,-500.0,0.00015262,2]
[347167895,1735540248182,-12730.05,0.00015262,2]
[347167896,1735540248193,-500.0,0.00015262,2]
[347167897,1735540248204,-500.0,0.00015262,2]
[347167898,1735540248214,-500.0,0.00015262,2]
[347167899,1735540248225,-500.0,0.00015262,2]
[347167900,1735540248235,-500.0,0.00015262,2]
[347167901,1735540248246,-500.0,0.00015262,2]
[347167902,1735540248257,-500.0,0.00015262,2]
[347167903,1735540248267,-500.0,0.00015262,2]
[347167904,1735540248278,-538.46,0.00015262,2]
[347167905,1735540248288,-512.31414895,0.00015262,2]
[347167906,1735540248298,-907.32,0.00015262,2]
[347167907,1735540248308,-500.0,0.00015262,2]
[347167908,1735540248319,-500.0,0.00015262,2]
[347167909,1735540248329,-1407.57,0.00015262,2]
[347167910,1735540248340,-500.0,0.00015262,2]
[347167911,1735540248351,-500.0,0.00015262,2]
[347167912,1735540248362,-2114.27,0.00015262,2]
[347167913,1735540248373,-500.0,0.00015262,2]
[347167914,1735540248384,-511.43208948,0.00015262,2]
[347167915,1735540248394,-500.0,0.00015262,2]
[347167916,1735540248406,-1732.3,0.00015262,2]
[347167917,1735540248417,-600.55299688,0.00015262,2]
[347167918,1735540248428,-500.0,0.00015262,2]
[347167919,1735540248439,-3453.94,0.00015262,2]
[347167920,1735540248450,-500.0,0.00015262,2]
[347167921,1735540248462,-500.0,0.00015262,2]
[347167922,1735540248474,-151.0,0.00015263,2]
[347167923,1735540248486,-151.0,0.00015263,2]
[347167924,1735540248499,-500.0,0.00015263,2]
[347167925,1735540248510,-500.0,0.00015263,2]
[347167926,1735540248521,-500.0,0.00015263,2]
[347167927,1735540248532,-566.538786,0.00015263,2]
[347167928,1735540248543,-566.538786,0.00015263,2]
[347167929,1735540248554,-566.538786,0.00015263,2]
[347167930,1735540248565,-566.538786,0.00015263,2]
[347167931,1735540248576,-269.085621,0.00015263,2]
[347167932,1735540248587,-269.085621,0.00015263,2]
[347167933,1735540248598,-269.085621,0.00015263,2]
[347167934,1735540248609,-269.085621,0.00015263,2]
[347167935,1735540248621,-269.085621,0.00015263,2]
[347167936,1735540248632,-269.08561627,0.00015263,2]
[347167937,1735540248643,-223.792989,0.00015263,2]
[347167938,1735540248653,-223.792989,0.00015263,2]
[347167939,1735540248664,-223.792989,0.00015263,2]
[347167940,1735540248675,-223.792989,0.00015263,2]
[347167941,1735540248686,-500.0,0.00015263,2]
[347167942,1735540248697,-151.0,0.00015263,2]
[347167943,1735540248707,-151.0,0.00015263,2]
[347167944,1735540248718,-151.0,0.00015263,2]
[347167945,1735540248729,-151.0,0.00015263,2]
[347167946,1735540248739,-151.0,0.00015263,2]
[347167947,1735540248751,-151.0,0.00015263,2]
[347167948,1735540248763,-151.0,0.00015263,2]
[347167949,1735540248774,-151.0,0.00015263,2]
[347167950,1735540248784,-500.0,0.00015263,2]
[347167951,1735540248797,-538.65,0.00015263,2]
[347167952,1735540248808,-500.0,0.00015263,2]
[347167953,1735540248818,-1156.228647,0.00015263,2]
[347167954,1735540248828,-1156.228652,0.00015263,2]
[347167955,1735540248839,-500.0,0.00015263,2]
[347167956,1735540248849,-330.978112,0.00015263,2]
[347167957,1735540248859,-330.978108,0.00015263,2]
[347167958,1735540248870,-500.0,0.00015263,2]
[347167959,1735540248880,-597.60958937,0.00015263,2]
[347167960,1735540248890,-191.12,0.00015263,2]
[347167961,1735540248900,-1379.333939,0.00015263,2]
[347167962,1735540248912,-154.228486,0.00015263,2]
[347167963,1735540248921,-1379.333941,0.00015263,2]
[347167964,1735540248932,-154.228495,0.00015263,2]
[347167965,1735540248942,-500.0,0.00015263,2]
[347167966,1735540248952,-626.7535482,0.00015263,2]
[347167967,1735540248963,-500.0,0.00015263,2]
[347167968,1735540248973,-500.0,0.00015263,2]
[347167969,1735540248983,-331.8,0.00015263,2]
[347167970,1735540248994,-254.25997644,0.00015271,2]
[347167971,1735540249005,-150.0,0.00015279,2]
[347167972,1735540249015,-150.0,0.00015281,2]
[347167973,1735540249024,-254.25997644,0.00015288,2]
[347167974,1735540249035,-200.0,0.0001529,2]
[347167975,1735540249045,-200.0,0.0001529,2]
[347167976,1735540249056,-200.0,0.0001529,2]
[347167977,1735540249066,-200.0,0.0001529,2]
[347167978,1735540249076,-150.0,0.00015298,2]
[347167979,1735540249086,-1517.64,0.000153,2]
[347167980,1735540249097,-150.0,0.00015302,2]
[347167981,1735540249107,-150.0,0.00015302,2]
[347167982,1735540249118,-254.25997644,0.00015304,2]
[347167983,1735540249128,-1302.0,0.0001532,2]
[347167984,1735540249138,-254.25997644,0.00015321,2]
[347167985,1735540249148,-150.0,0.00015323,2]
[347167986,1735540249159,-1500.0,0.00015333,2]
[347167987,1735540249169,-150.0,0.00015334,2]
[347167988,1735540249179,-254.25997644,0.00015337,2]
[347167989,1735540249190,-150.0,0.00015344,2]
[347167990,1735540249201,-1500.0,0.00015346,2]
[347167991,1735540249211,-254.25997644,0.00015353,2]
[347167992,1735540249222,-216.49075896,0.00015363,2]
[347167993,1735540249233,-150.0,0.00015365,2]
[347167994,1735540249244,-254.25997644,0.0001537,2]
[347167995,1735540249478,-150.0,0.0001537,2]
[347167996,1735540249499,-150.0,0.0001537,2]
[347167997,1735540249512,-2595.76538402,0.00015385,2]
[347167998,1735540249521,-254.25997644,0.00015386,2]
[347167999,1735540249530,-150.0,0.00015386,2]
[347168000,1735540249539,-15934.11462272,0.000154,2]
[347168001,1735540249548,-151.0,0.000154,2]
[347168002,1735540249557,-151.0,0.000154,2]
[347168003,1735540249566,-566.538786,0.000154,2]
[347168004,1735540249575,-566.538786,0.000154,2]
[347168005,1735540249583,-223.792989,0.000154,2]
[347168006,1735540249592,-223.792989,0.000154,2]
[347168007,1735540249601,-151.0,0.000154,2]
[347168008,1735540249610,-500.0,0.000154,2]
[347168009,1735540249619,-484.58093188,0.000154,2]
[347168010,1735540249628,-150.0,0.00015401,2]
[347168011,1735540249638,-254.25997644,0.00015403,2]
[347168012,1735540249647,-150.0,0.00015406,2]
[347168013,1735540249656,-150.0,0.00015407,2]
[347168014,1735540249666,-254.25997644,0.00015419,2]
[347168015,1735540249675,-150.0,0.00015429,2]
[347168016,1735540249685,-254.25997644,0.00015436,2]
[347168017,1735540249694,-150.0,0.00015439,2]
[347168018,1735540249703,-744.0,0.00015442,2]
[347168019,1735540249712,-150.0,0.00015442,2]
[347168020,1735540249721,-200.0,0.00015443,2]
[347168021,1735540249731,-200.0,0.00015443,2]
[347168022,1735540249741,-200.0,0.00015443,2]
[347168023,1735540249751,-150.0,0.00015445,2]
[347168024,1735540249759,-150.0,0.0001545,2]
[347168025,1735540249769,-254.25997644,0.00015452,2]
[347168026,1735540249778,-150.0,0.0001546,2]
[347168027,1735540249787,-254.25997644,0.00015468,2]
[347168028,1735540249799,-150.0,0.00015471,2]
[347168029,1735540249808,-150.0,0.00015478,2]
[347168030,1735540249817,-254.25997644,0.00015485,2]
[347168031,1735540249826,-150.0,0.00015485,2]
[347168032,1735540249834,-150.0,0.00015492,2]
[347168033,1735540249845,-150.0,0.00015495,2]
[347168034,1735540249854,-1005.0,0.000155,2]